bitfinex/quotes_SOLUSD_20241118
["timestamp","ask_amount","ask_price","bid_price","bid_amount"]
[1731927764066,9.43128908,247.0,246.93,10.1243]
[1731927764722,9.43128908,247.02,246.95,20.0]
[1731927765030,9.43128908,247.02,246.96,23.776884]
[1731927765928,9.43128908,247.02,246.97,14.1716]
[1731927766125,9.43128908,247.06,246.98,76.13554862]
[1731927766325,9.43128908,247.06,246.98,56.13554862]
[1731927767131,9.43128908,247.1,247.02,0.09367462]
[1731927767333,9.43128908,247.1,247.02,23.87055862]
[1731927767929,9.43128908,247.1,247.03,14.1682]
[1731927768428,4.0465,247.13,247.03,23.59948908]
[1731927768622,9.43128908,247.15,247.07,9.43128908]
[1731927768828,9.43128908,247.15,247.05,9.43128908]
[1731927769026,9.43128908,247.15,247.06,43.87055862]
[1731927769242,9.43128908,247.15,247.07,9.43128908]
[1731927769631,9.43128908,247.15,247.06,43.87055862]
[1731927769829,9.43128908,247.13,247.06,43.87055862]
[1731927771055,0.1,247.18,247.03,10.1202]
[1731927771360,9.43128908,247.09,247.04,20.0]
[1731927772650,9.43128908,247.09,247.04,24.0478]
[1731927773757,9.43128908,247.11,247.04,24.0478]
[1731927774653,9.43128908,247.11,247.04,14.1676]
[1731927777157,9.43128908,247.09,247.04,14.1676]
[1731927777833,9.43128908,247.11,247.04,14.1676]
[1731927778662,9.43128908,247.09,247.04,14.1676]
[1731927779157,9.43128908,247.11,247.04,14.1676]
[1731927779460,9.43128908,247.11,247.04,10.1198]
[1731927780258,9.43128908,247.07,246.99,34.1703]
[1731927780643,0.2,247.14,246.99,10.1217]
[1731927780644,9.43128908,247.05,246.99,10.1217]
[1731927780943,9.43128908,247.03,246.99,10.1217]
[1731927781558,9.43128908,247.01,246.98,32.1395]
[1731927781941,9.43128908,247.03,246.98,32.1395]
[1731927782666,9.43128908,247.03,246.98,36.1883]
[1731927783959,9.43128908,246.99,246.8,0.2]
[1731927784259,9.43128908,246.94,246.89,10.1257]
[1731927785543,9.43128908,246.92,246.86,4.0508]
[1731927785761,9.43128908,246.9,246.85,32.9552]
[1731927786057,9.43128908,246.88,246.85,32.9552]
[1731927786266,9.43128908,246.86,246.78,14.1825]
[1731927786561,9.43128908,246.83,246.78,14.1825]
[1731927787832,4.05,246.91,246.78,23.61378908]
[1731927788031,9.43128908,246.85,246.78,14.1825]
[1731927788250,9.43128908,246.81,246.75,4.0526]
[1731927789163,9.43128908,246.81,246.74,32.9552]
[1731927789454,9.43128908,246.77,246.69,4.0536]
[1731927790239,29.7759437,246.77,246.67,31.7494]
[1731927790439,59.7759437,246.77,246.67,31.7494]
[1731927791164,83.5528277,246.77,246.67,31.7494]
[1731927791349,87.6051277,246.77,246.67,31.7494]
[1731927791538,39.43128908,246.77,246.67,31.7494]
[1731927791857,39.43128908,246.77,246.7,4.0534]
[1731927792550,30.0,246.77,246.72,20.0]
[1731927792744,30.0,246.77,246.74,9.43128908]
[1731927792953,9.43128908,246.84,246.76,26.72134166]
[1731927793259,9.43128908,246.86,246.79,23.87055862]
[1731927793437,9.43128908,246.88,246.79,23.87055862]
[1731927793965,9.43128908,246.88,246.81,23.776884]
[1731927794264,9.43128908,246.92,246.83,23.776884]
[1731927794758,0.1,247.01,246.81,30.1946]
[1731927794759,9.43128908,246.94,246.86,20.09367462]
[1731927794951,9.43128908,246.94,246.87,23.776884]
[1731927795448,9.43128908,246.94,246.88,4.0505]
[1731927796055,9.43128908,246.96,246.88,14.1768]
[1731927796368,15.12397276,246.98,246.88,29.30077276]
[1731927796748,15.12397276,246.98,246.89,23.776884]
[1731927797446,15.12397276,246.98,246.9,4.0502]
[1731927798257,15.12397276,246.96,246.9,14.1757]
[1731927799068,15.12397276,246.93,246.82,20.0]
[1731927799238,15.12397276,246.91,246.83,25.25197276]
[1731927800266,15.12397276,246.91,246.83,10.128]
[1731927800641,15.12397276,246.91,246.84,20.0]
[1731927801147,15.12397276,246.93,246.85,23.776884]
[1731927801350,15.12397276,246.95,246.85,38.90085676]
[1731927802249,15.12397276,246.95,246.89,4.0503]
[1731927803346,15.12397276,246.95,246.87,57.954284]
[1731927803563,15.12397276,246.97,246.89,20.0]
[1731927803745,15.12397276,246.97,246.9,23.776884]
[1731927803942,15.12397276,246.99,246.9,35.21764738]
[1731927804267,15.1148837,247.05,246.95,32.6875]
[1731927804560,15.1148837,247.05,246.95,47.8023837]
[1731927804964,15.1148837,247.05,246.97,15.1148837]
[1731927805339,175.114884,247.19,246.95,32.6875]
[1731927805340,15.1148837,247.09,246.99,35.1148837]
[1731927805545,15.1148837,247.09,247.0,37.946784]
[1731927805763,15.1148837,247.13,247.04,23.776884]
[1731927805964,15.1148837,247.13,247.05,20.0]
[1731927806149,15.1148837,247.15,247.06,23.776884]
[1731927806567,72.1971662,247.24,247.08,48.3531837]
[1731927806772,15.1148837,247.19,247.1,35.1148837]
[1731927806943,15.1148837,247.19,247.11,23.776884]
[1731927807148,15.1148837,247.21,247.12,15.1148837]
[1731927807364,15.1148837,247.21,247.13,23.776884]
[1731927807666,15.1148837,247.21,247.14,4.0462]
[1731927809582,15.1148837,247.19,247.1,15.1148837]
[1731927809953,15.1148837,247.17,247.08,33.2383]
[1731927810250,15.1148837,247.15,247.08,33.2383]
[1731927810650,15.10275983,247.15,247.08,33.2383]
[1731927811772,19.14885983,247.15,247.08,33.2383]
[1731927812569,0.09367462,247.19,247.08,33.2383]
[1731927812570,15.10275983,247.11,247.08,33.2383]
[1731927812760,15.10275983,247.09,247.01,41.0929]
[1731927812955,15.10275983,247.09,247.01,60.24405983]
[1731927813384,15.10275983,247.09,247.01,45.1413]
[1731927814250,15.10275983,247.07,247.01,45.1413]
[1731927816064,15.10275983,247.09,247.02,23.776884]
[1731927816261,15.10275983,247.09,247.01,45.1413]
[1731927816778,15.10275983,247.03,247.01,30.9722]
[1731927817482,15.10275983,247.03,246.93,19.15225983]
[1731927817483,15.10275983,247.03,246.95,31.4388]
[1731927819058,15.10275983,246.99,246.95,31.4388]
[1731927819464,15.10275983,246.97,246.95,31.4388]
[1731927820272,15.10275983,246.97,246.88,55.2642]
[1731927820466,0.12549,246.94,246.88,45.138]
[1731927820672,15.10275983,246.92,246.88,45.138]
[1731927821470,0.34465462,246.91,246.83,25.23105983]
[1731927821677,0.25098,246.91,246.83,10.1283]
[1731927821865,15.10275983,246.92,246.83,14.1796]
[1731927822067,15.10275983,246.92,246.83,29.28235983]
[1731927822271,15.10275983,246.94,246.85,15.10275983]
[1731927822865,15.10275983,246.94,246.86,4.0508]
[1731927823470,15.10275983,246.94,246.86,14.1779]
[1731927824561,15.10275983,246.96,246.87,58.87964383]
[1731927825074,15.10275983,246.98,246.87,58.87964383]
[1731927825274,15.10275983,246.96,246.87,58.87964383]
[1731927826058,15.10275983,246.94,246.88,4.0505]
[1731927826764,15.10275983,246.92,246.86,10.1271]
[1731927827069,15.10275983,246.96,246.87,38.87964383]
[1731927827374,15.10275983,246.98,246.89,15.10275983]
[1731927827760,15.10275983,246.96,246.87,38.87964383]
[1731927828184,15.10275983,246.96,246.89,27.827184]
[1731927828481,15.10275983,246.93,246.87,24.0506]
[1731927829270,15.10275983,246.93,246.87,20.0]
[1731927829766,15.10275983,246.91,246.83,15.10275983]
[1731927830564,15.10275983,246.91,246.82,4.0514]
[1731927831563,15.10275983,246.91,246.81,25.23195983]
[1731927831564,15.10275983,246.89,246.81,10.1292]
[1731927831766,15.10275983,246.89,246.8,36.0917]
[1731927831767,15.10275983,246.85,246.8,32.04]
[1731927831966,15.10275983,246.81,246.76,3.10625258]
[1731927832257,0.09367462,246.83,246.76,3.10625258]
[1731927832457,15.10275983,246.8,246.76,3.10625258]
[1731927834573,19.15465983,246.8,246.76,3.10625258]
[1731927836088,0.25098,246.77,246.76,3.10625258]
[1731927836887,20.34465462,246.77,246.76,3.10625258]
[1731927837692,0.34465462,246.77,246.76,3.10625258]
[1731927837988,20.34465462,246.77,246.76,3.10625258]
[1731927839766,15.10275983,246.78,246.76,3.10625258]
[1731927841769,15.10275983,246.8,246.76,3.10625258]
[1731927842185,15.10275983,246.82,246.76,3.10625258]
[1731927842386,15.10275983,246.82,246.76,7.15865258]
[1731927843086,15.10275983,246.82,246.76,3.10625258]
[1731927843589,15.10275983,246.78,246.76,3.10625258]
[1731927844088,0.12549,246.77,246.76,3.10625258]
[1731927844297,15.10275983,246.78,246.76,3.10625258]
[1731927844685,0.34465462,246.77,246.76,3.10625258]
[1731927845188,20.34465462,246.77,246.76,3.10625258]
[1731927845785,48.17383862,246.77,246.76,3.10625258]
[1731927846084,24.027864,246.74,246.61,30.6085]
[1731927846287,15.10275983,246.68,246.61,30.6085]
[1731927846491,15.10275983,246.68,246.61,34.6633]
[1731927846680,15.10275983,246.7,246.61,59.90345983]
[1731927847196,15.10275983,246.7,246.61,44.8007]
[1731927847385,15.10275983,246.7,246.61,59.90345983]
[1731927847876,15.10275983,246.72,246.63,15.10275983]
[1731927848188,15.10275983,246.74,246.65,15.10275983]
[1731927848491,15.10275983,246.74,246.66,23.776884]
[1731927848671,4.0515,246.82,246.66,23.776884]
[1731927848877,15.10275983,246.75,246.68,23.776884]
[1731927849793,15.10275983,246.75,246.68,27.830584]
[1731927850294,15.10275983,246.73,246.67,23.776884]
[1731927850798,15.10275983,246.75,246.67,23.776884]
[1731927851988,15.10275983,246.75,246.67,27.830784]
[1731927852190,15.10275983,246.84,246.67,27.830784]
[1731927852191,15.10275983,246.79,246.69,15.10275983]
[1731927852503,15.10275983,246.79,246.68,20.0]
[1731927852698,15.10275983,246.75,246.67,53.06844383]
[1731927853002,15.10275983,246.75,246.69,23.776884]
[1731927853300,15.10275983,246.73,246.67,10.1349]
[1731927853493,15.10275983,246.75,246.68,23.776884]
[1731927853675,15.10275983,246.71,246.67,10.1349]
[1731927853882,15.10275983,246.73,246.63,15.10275983]
[1731927854198,15.10275983,246.75,246.65,15.10275983]
[1731927854378,9.4694921,246.75,246.66,9.4694921]
[1731927854793,9.4694921,246.75,246.67,4.0539]
[1731927855201,9.4694921,246.7,246.63,4.0546]
[1731927855503,9.4694921,246.7,246.63,20.0]
[1731927856302,0.09367462,246.74,246.63,20.0]
[1731927856303,9.4694921,246.68,246.63,20.0]
[1731927856677,9.4694921,246.7,246.63,20.0]
[1731927857100,13.5230921,246.7,246.63,20.0]
[1731927857285,9.4694921,246.68,246.61,30.6085]
[1731927857598,4.0536,246.7,246.57,10.1389]
[1731927857599,9.4694921,246.66,246.57,10.1389]
[1731927858010,9.4694921,246.62,246.55,45.7782]
[1731927858298,15.17223851,246.56,246.55,15.0]
[1731927859080,15.17223851,246.61,246.55,15.0]
[1731927859276,0.12549,246.62,246.55,15.0]
[1731927859480,15.17223851,246.63,246.55,15.0]
[1731927859481,15.17223851,246.63,246.55,30.17223851]
[1731927859781,4.0539,246.67,246.57,15.17223851]
[1731927859782,15.17223851,246.65,246.57,15.17223851]
[1731927860379,15.17223851,246.65,246.58,23.776884]
[1731927860905,19.22653851,246.65,246.58,23.776884]
[1731927861092,15.17223851,246.63,246.55,15.0]
[1731927861279,15.17223851,246.6,246.55,15.0]
[1731927861893,15.17223851,246.63,246.55,15.0]
[1731927862090,19.22653851,246.65,246.56,15.17223851]
[1731927862501,0.12549,246.64,246.55,15.0]
[1731927862685,15.17223851,246.67,246.59,15.17223851]
[1731927862884,15.17223851,246.67,246.55,29.1957]
[1731927862885,15.17223851,246.72,246.63,23.776884]
[1731927863095,15.17223851,246.72,246.63,15.17223851]
[1731927863308,15.17223851,246.7,246.63,23.776884]
[1731927863601,15.17223851,246.74,246.66,23.776884]
[1731927864095,19.22433851,246.78,246.69,15.17223851]
[1731927864300,15.17223851,246.82,246.73,15.17223851]
[1731927864492,15.17223851,246.82,246.75,23.776884]
[1731927864896,4.0516,246.81,246.75,23.776884]
[1731927866400,24.0516,246.81,246.75,23.776884]
[1731927866613,4.0516,246.81,246.75,23.776884]
[1731927867307,4.0516,246.81,246.74,32.3956]
[1731927867507,4.0516,246.81,246.75,23.776884]
[1731927867802,15.17223851,246.8,246.75,23.776884]
[1731927867999,15.17223851,246.8,246.74,45.6191]
[1731927868202,0.12549,246.79,246.74,45.6191]
[1731927868721,15.17223851,246.8,246.74,45.6191]
[1731927868904,4.0516,246.81,246.68,30.1847]
[1731927868905,15.17223851,246.76,246.68,30.1847]
[1731927869202,14.1808,246.81,246.68,30.1847]
[1731927869203,15.17223851,246.77,246.68,30.1847]
[1731927869613,4.0525,246.76,246.68,30.1847]
[1731927870318,15.17223851,246.77,246.69,15.26591313]
[1731927870609,15.17223851,246.77,246.69,23.776884]
[1731927870803,15.17223851,246.77,246.69,38.94912251]
[1731927870991,15.17223851,246.79,246.69,38.94912251]
[1731927871196,15.17223851,246.81,246.72,23.776884]
[1731927871403,15.17223851,246.83,246.74,23.776884]
[1731927871612,4.0515,246.82,246.74,23.776884]
[1731927871791,4.0515,246.82,246.75,15.17223851]
[1731927872110,4.0515,246.82,246.76,23.776884]
[1731927872414,4.0515,246.82,246.74,23.776884]
[1731927873692,15.17223851,246.85,246.76,23.776884]
[1731927873891,15.17223851,246.85,246.78,23.776884]
[1731927874909,4.0503,246.89,246.78,23.776884]
[1731927874910,15.17223851,246.87,246.78,38.94912251]
[1731927875093,4.0502,246.9,246.83,23.776884]
[1731927875292,15.17223851,246.93,246.85,23.776884]
[1731927875500,15.17223851,246.97,246.89,23.776884]
[1731927876513,4.0492,246.96,246.89,23.776884]
[1731927876712,24.0492,246.96,246.89,23.776884]
[1731927877097,4.0492,246.96,246.89,23.776884]
[1731927877705,22.31792616,247.06,246.94,15.17223851]
[1731927877706,4.0477,247.05,246.94,15.17223851]
[1731927877909,15.17223851,247.08,247.0,23.776884]
[1731927878113,8.2098,247.18,247.0,23.776884]
[1731927878114,2.08031122,247.2,247.05,23.776884]
[1731927878411,15.17223851,247.15,247.06,15.17223851]
[1731927878586,15.17223851,247.15,247.07,23.776884]
[1731927878587,4.0462,247.14,247.07,23.776884]
[1731927880012,15.17223851,247.11,247.03,23.776884]
[1731927880395,15.17223851,247.11,247.01,23.776884]
[1731927880598,4.0469,247.1,247.01,23.776884]
[1731927881119,15.17223851,247.05,246.98,43.518]
[1731927881318,15.17223851,247.03,246.98,43.518]
[1731927882408,15.17223851,247.01,246.98,43.518]
[1731927882607,4.0485,247.0,246.98,43.518]
[1731927882809,4.0485,247.0,246.98,12.4794]
[1731927883003,4.0485,247.0,246.92,32.1058]
[1731927883217,15.17223851,246.97,246.92,44.9015]
[1731927883915,15.17223851,246.99,246.92,44.9015]
[1731927884294,15.17223851,246.99,246.93,23.776884]
[1731927884498,4.0489,246.98,246.93,23.776884]
[1731927887823,15.17223851,247.01,246.93,23.776884]
[1731927888131,4.0486,247.0,246.93,23.776884]
[1731927888816,15.17223851,246.97,246.93,23.776884]
[1731927889120,4.0492,246.96,246.93,23.776884]
[1731927890117,15.17223851,246.99,246.93,23.776884]
[1731927890420,4.0489,246.98,246.93,23.776884]
[1731927890603,24.0489,246.98,246.93,23.776884]
[1731927891419,15.17223851,246.97,246.93,23.776884]
[1731927892525,24.0489,246.98,246.9,23.776884]
[1731927892726,15.17223851,246.97,246.88,23.87055862]
[1731927893123,20.0,246.96,246.88,23.87055862]
[1731927893516,4.0492,246.96,246.88,23.87055862]
[1731927893728,4.0492,246.96,246.9,0.09367462]
[1731927893916,4.0492,246.96,246.9,23.776884]
[1731927895312,4.0492,246.96,246.87,12.9095]
[1731927895532,15.17223851,246.94,246.87,12.9095]
[1731927896733,15.17223851,246.94,246.88,23.776884]
[1731927896925,15.17223851,246.9,246.84,33.2481]
[1731927897126,15.17223851,246.86,246.81,12.3204]
[1731927897320,15.17223851,246.82,246.78,31.6729]
[1731927897725,0.1,246.91,246.78,31.6729]
[1731927897726,15.17223851,246.84,246.78,31.6729]
[1731927897936,15.17223851,246.84,246.73,15.17223851]
[1731927898116,15.17223851,246.84,246.68,13.2291]
[1731927898117,15.17223851,246.79,246.68,13.2291]
[1731927898631,0.12549,246.92,246.68,13.2291]
[1731927898632,15.17223851,246.81,246.71,15.26591313]
[1731927899015,19.22403851,246.81,246.71,15.26591313]
[1731927899434,19.22403851,246.81,246.71,19.31911313]
[1731927899636,19.22403851,246.81,246.73,0.09367462]
[1731927899827,19.22403851,246.81,246.75,0.09367462]
[1731927900027,15.17223851,246.81,246.75,0.21916462]
[1731927900418,15.17223851,246.83,246.76,0.12549]
[1731927900626,15.17223851,246.85,246.77,0.21916462]
[1731927901917,15.17223851,246.85,246.79,0.09367462]
[1731927902141,15.17223851,246.87,246.79,0.21916462]
[1731927902436,4.0506,246.88,246.81,0.21916462]
[1731927903147,15.17223851,246.89,246.83,0.09367462]
[1731927904129,4.0502,246.9,246.81,32.91959]
[1731927904130,15.17223851,246.87,246.81,0.09367462]
[1731927904445,15.17223851,246.96,246.78,5.33194729]
[1731927904446,15.17223851,246.85,246.78,0.12549]
[1731927904740,15.17223851,246.85,246.79,0.09367462]
[1731927904934,15.17223851,246.85,246.79,0.21916462]
[1731927905334,15.17223851,246.85,246.81,0.09367462]
[1731927905525,15.17223851,246.87,246.81,0.09367462]
[1731927905722,15.17223851,246.93,246.86,0.09367462]
[1731927906035,15.17223851,246.96,246.86,0.34465462]
[1731927906219,15.17223851,246.96,246.88,0.34465462]
[1731927906422,4.0487,246.99,246.9,0.21916462]
[1731927906638,15.17223851,246.98,246.92,0.21916462]
[1731927906820,2.08805329,247.07,246.96,15.51689313]
[1731927906821,15.17223851,247.07,246.96,15.51689313]
[1731927907030,15.17223851,247.07,246.99,0.34465462]
[1731927907429,15.17223851,247.09,247.01,0.34465462]
[1731927907735,15.17223851,247.11,247.03,0.34465462]
[1731927907924,15.17223851,247.11,247.05,0.21916462]
[1731927908119,15.17223851,247.11,247.06,5.07049989]
[1731927909548,15.17223851,247.09,247.05,12.4006]
[1731927909757,4.0467,247.12,247.06,0.12549]
[1731927909758,15.17223851,247.11,247.06,0.12549]
[1731927910052,10.1118,247.24,247.09,0.09367462]
[1731927910229,15.17223851,247.2,247.11,0.09367462]
[1731927910729,15.17223851,247.15,247.07,31.0038]
[1731927910931,15.17223851,247.2,247.07,31.0038]
[1731927910932,15.17223851,247.13,247.07,31.0038]
[1731927911447,15.17223851,247.13,247.08,0.09367462]
[1731927912742,4.0436,247.3,247.14,0.34465462]
[1731927912943,15.17223851,247.24,247.14,15.51689313]
[1731927913146,15.17223851,247.24,247.16,15.17223851]
[1731927913345,15.17223851,247.24,247.14,15.42321851]
[1731927913728,15.17223851,247.24,247.15,0.21916462]
[1731927914536,19.21623851,247.28,247.19,0.25098]
[1731927914736,19.21623851,247.28,247.22,0.21916462]
[1731927914737,15.17223851,247.28,247.22,0.21916462]
[1731927914954,15.17223851,247.28,247.24,0.09367462]
[1731927915542,15.17223851,247.26,247.21,0.09367462]
[1731927915745,15.17223851,247.26,247.21,0.34465462]
[1731927915935,4.0436,247.3,247.21,0.34465462]
[1731927915936,15.17223851,247.28,247.21,0.34465462]
[1731927916143,15.17223851,247.28,247.21,12.93875462]
[1731927917145,4.0433,247.32,247.21,12.93875462]
[1731927917146,15.17223851,247.32,247.23,0.34465462]
[1731927917350,15.17223851,247.32,247.25,0.09367462]
[1731927917740,15.17223851,247.32,247.26,0.12549]
[1731927917941,15.17223851,247.3,247.24,0.12549]
[1731927918134,15.17223851,247.3,247.25,0.09367462]
[1731927918460,15.17223851,247.32,247.27,0.09367462]
[1731927918960,15.17223851,247.34,247.27,0.09367462]
[1731927919347,15.17223851,247.34,247.27,4.58487473]
[1731927919551,15.17223851,247.34,247.29,0.09367462]
[1731927920652,19.21503851,247.36,247.29,0.09367462]
[1731927920860,19.21503851,247.36,247.31,0.09367462]
[1731927921354,15.17223851,247.36,247.31,0.09367462]
[1731927921557,4.0424,247.38,247.31,0.09367462]
[1731927922056,10.1005,247.52,247.34,15.27223851]
[1731927922265,15.17223851,247.44,247.36,0.25098]
[1731927922943,15.17223851,247.44,247.36,15.42321851]
[1731927923151,15.17223851,247.56,247.36,15.42321851]
[1731927923152,15.17223851,247.48,247.38,15.17223851]
[1731927923348,15.17223851,247.48,247.39,20.1]
[1731927923537,15.17223851,247.48,247.41,0.12549]
[1731927923738,15.17223851,247.5,247.41,0.12549]
[1731927924156,4.0395,247.55,247.42,0.12549]
[1731927924356,15.17223851,247.51,247.42,0.12549]
[1731927924959,15.17223851,247.51,247.45,0.12549]
[1731927925140,15.17223851,247.51,247.45,4.29208]
[1731927925346,15.17223851,247.51,247.45,8.64113055]
[1731927925660,15.17223851,247.53,247.46,12.1895]
[1731927925862,4.0392,247.57,247.46,12.1895]
[1731927925863,5.50128182,247.68,247.48,15.17223851]
[1731927926162,15.17223851,247.58,247.49,25.17058611]
[1731927926535,15.17223851,247.58,247.5,15.17223851]
[1731927926740,15.17223851,247.58,247.51,5.04509611]
[1731927927258,15.17223851,247.58,247.5,0.12549]
[1731927927957,15.17223851,247.58,247.5,4.65126833]
[1731927928156,15.17223851,247.58,247.51,0.12549]
[1731927928348,15.17223851,247.58,247.51,4.65126833]
[1731927928553,15.17223851,247.58,247.52,0.12549]
[1731927928748,15.17223851,247.54,247.4,30.32]
[1731927928938,15.17223851,247.48,247.4,43.1897]
[1731927929146,15.17223851,247.46,247.4,43.1897]
[1731927930368,15.17223851,247.56,247.4,43.1897]
[1731927930369,15.17223851,247.48,247.41,0.12549]
[1731927930551,15.17223851,247.48,247.42,0.09367462]
[1731927930754,15.17223851,247.5,247.42,0.21916462]
[1731927930955,15.17223851,247.5,247.4,43.1897]
[1731927931157,4.0395,247.55,247.4,53.2947]
[1731927931158,15.17223851,247.48,247.4,53.2947]
[1731927931448,15.17223851,247.48,247.41,0.09367462]
[1731927931961,15.17223851,247.46,247.35,19.21493851]
[1731927932142,15.17223851,247.46,247.35,29.32203851]
[1731927932645,15.17223851,247.46,247.36,0.09367462]
[1731927933269,19.21333851,247.46,247.36,0.34465462]
[1731927933665,19.21333851,247.46,247.36,20.34465462]
[1731927934465,15.17223851,247.42,247.33,20.67562439]
[1731927935547,24.0418,247.41,247.33,20.67562439]
[1731927935746,15.17223851,247.42,247.33,19.21523851]
[1731927935971,15.17223851,247.42,247.34,0.09367462]
[1731927936146,15.17223851,247.44,247.36,0.21916462]
[1731927937368,15.17223851,247.44,247.36,4.26166462]
[1731927939853,15.17223851,247.44,247.36,24.36166462]
[1731927940165,15.17223851,247.46,247.38,0.21916462]
[1731927941556,15.17223851,247.48,247.4,0.21916462]
[1731927942350,15.17223851,247.46,247.4,0.09367462]
[1731927943052,15.17223851,247.44,247.37,0.12549]
[1731927943561,15.17223851,247.44,247.38,0.09367462]
[1731927944571,15.17223851,247.46,247.38,0.09367462]
[1731927945171,19.21333851,247.46,247.38,0.09367462]
[1731927946371,19.21333851,247.46,247.38,4.13587462]
[1731927946761,15.17223851,247.42,247.33,15.17223851]
[1731927946966,4.0411,247.46,247.33,15.17223851]
[1731927946967,15.17223851,247.44,247.35,15.17223851]
[1731927947551,15.17223851,247.44,247.36,0.09367462]
[1731927948170,15.17223851,247.42,247.36,0.09367462]
[1731927949171,15.17223851,247.42,247.32,31.4123]
[1731927949172,15.17223851,247.38,247.32,31.4123]
[1731927949362,15.17223851,247.33,247.28,22.7609]
[1731927949566,15.17223851,247.33,247.28,12.6511]
[1731927951771,15.17223851,247.37,247.29,0.09367462]
[1731927951977,8.2098,247.47,247.33,0.09367462]
[1731927951978,15.17223851,247.41,247.33,0.09367462]
[1731927952958,15.17223851,247.39,247.33,0.09367462]
[1731927954571,15.17223851,247.43,247.35,0.09367462]
[1731927954874,15.17223851,247.45,247.35,15.26591313]
[1731927955076,15.17223851,247.45,247.36,14.40028]
[1731927955277,0.1,247.54,247.36,14.40028]
[1731927955278,15.17223851,247.47,247.37,35.26591313]
[1731927955456,15.17223851,247.51,247.43,0.21916462]
[1731927956578,15.17223851,247.51,247.44,4.0413]
[1731927956770,15.17223851,247.54,247.47,0.09367462]
[1731927956973,15.17223851,247.56,247.47,15.26591313]
[1731927957173,15.17223851,247.56,247.48,0.12549]
[1731927957370,15.17223851,247.56,247.49,0.09367462]
[1731927957578,15.17223851,247.58,247.49,15.26591313]
[1731927957875,15.17223851,247.56,247.47,15.17223851]
[1731927958191,15.17223851,247.5,247.44,10.1034]
[1731927958371,4.0387,247.6,247.44,14.1447]
[1731927958372,15.17223851,247.52,247.44,14.1447]
[1731927959173,15.17223851,247.52,247.45,0.09367462]
[1731927960476,15.17223851,247.52,247.45,0.21916462]
[1731927960680,19.21233851,247.52,247.45,0.09367462]
[1731927960871,15.17223851,247.48,247.42,13.2763]
[1731927961072,15.17223851,247.46,247.42,13.2763]
[1731927962490,15.17223851,247.48,247.42,13.2763]
[1731927962678,15.17223851,247.5,247.43,0.09367462]
[1731927963272,15.17223851,247.5,247.42,23.3805]
[1731927963671,15.17223851,247.48,247.42,23.3805]
[1731927963877,15.17223851,247.48,247.42,13.2763]
[1731927964270,15.17223851,247.48,247.39,4.0421]
[1731927964271,15.17223851,247.44,247.36,22.5196]
[1731927964587,15.17223851,247.4,247.36,12.4131]
[1731927964891,4.0415,247.43,247.36,12.4131]
[1731927964892,15.17223851,247.38,247.36,12.4131]
[1731927965089,15.17223851,247.42,247.36,12.4131]
[1731927965270,15.17223851,247.42,247.37,0.09367462]
[1731927965780,15.17223851,247.42,247.36,12.4131]
[1731927966320,15.17223851,247.4,247.36,12.4131]
[1731927966501,4.0418,247.41,247.36,12.4131]
[1731927966672,15.17223851,247.42,247.36,12.4131]
[1731927966992,19.21403851,247.42,247.36,12.4131]
[1731927967197,15.17223851,247.38,247.31,0.03936109]
[1731927967570,15.17223851,247.4,247.31,19.2549996]
[1731927967784,15.17223851,247.4,247.32,0.09367462]
[1731927968592,15.17223851,247.4,247.33,4.0431]
[1731927968794,19.21433851,247.4,247.32,20.0]
[1731927968990,15.17223851,247.38,247.31,0.03936109]
[1731927970685,19.21453851,247.38,247.31,0.03936109]
[1731927971796,15.17223851,247.36,247.31,0.03936109]
[1731927973698,15.17223851,247.32,247.31,0.03936109]
[1731927973996,30.34447702,247.32,247.31,0.03936109]
[1731927974201,20.34465462,247.31,247.16,10.1146]
[1731927974403,20.34465462,247.31,247.12,30.2752]
[1731927974404,15.17223851,247.18,247.12,30.2752]
[1731927974697,15.17223851,247.15,247.07,16.5652]
[1731927975709,15.17223851,247.17,247.08,15.17223851]
[1731927975892,15.17223851,247.19,247.09,0.09367462]
[1731927976078,15.17223851,247.23,247.13,0.09367462]
[1731927976393,15.17223851,247.23,247.14,15.17223851]
[1731927976790,15.17223851,247.27,247.18,15.17223851]
[1731927977188,15.17223851,247.27,247.19,4.0454]
[1731927977382,15.17223851,247.27,247.18,15.17223851]
[1731927977691,15.17223851,247.27,247.17,10.1141]
[1731927977692,15.17223851,247.25,247.17,14.1598]
[1731927977898,15.17223851,247.25,247.18,0.09367462]
[1731927978295,15.17223851,247.27,247.18,35.26591313]
[1731927978481,15.17223851,247.29,247.2,15.26591313]
[1731927978793,15.17223851,247.29,247.18,20.0]